bitfinex-derivatives/quotes_BTCF0:USTF0_20241009
["timestamp","ask_amount","ask_price","bid_price","bid_amount"]
[1728500187409,0.5508,61273.0,61262.0,0.0038]
[1728500187410,0.081668,61263.0,61262.0,0.0038]
[1728500187705,0.081673,61259.0,61258.0,0.081675]
[1728500187903,0.271673,61259.0,61258.0,0.081675]
[1728500188109,1.771673,61259.0,61258.0,0.081675]
[1728500188311,0.081678,61256.0,61255.0,0.081678]
[1728500188519,0.271678,61256.0,61255.0,0.081678]
[1728500189508,0.271678,61256.0,61252.0,0.3608]
[1728500189509,1.581673,61259.0,61258.0,0.081675]
[1728500190103,1.46012954,61259.0,61258.0,0.081675]
[1728500191014,0.442465,61266.0,61265.0,0.081665]
[1728500191722,0.3608,61266.0,61265.0,0.081665]
[1728500192016,0.442457,61272.0,61271.0,0.081657]
[1728500192227,0.632457,61272.0,61271.0,0.081657]
[1728500193117,0.081663,61268.0,61267.0,0.08166]
[1728500193321,0.081663,61268.0,61262.0,0.08143]
[1728500193322,0.081668,61263.0,61262.0,0.01753]
[1728500193615,0.081668,61263.0,61262.0,0.096999]
[1728500195019,0.082668,61263.0,61262.0,0.096999]
[1728500195315,0.083668,61263.0,61262.0,0.01533]
[1728500195514,0.083668,61263.0,61262.0,0.096999]
[1728500196414,0.002,61263.0,61262.0,0.096999]
[1728500197005,0.19,61264.0,61262.0,0.01533]
[1728500197212,0.19,61264.0,61263.0,0.081668]
[1728500197908,0.3608,61272.0,61264.0,0.081667]
[1728500197909,0.19,61268.0,61264.0,0.081667]
[1728500198118,0.081653,61275.0,61274.0,0.081651]
[1728500198323,0.271653,61275.0,61274.0,0.081651]
[1728500200420,0.19,61275.0,61274.0,0.081651]
[1728500200620,0.17467,61275.0,61274.0,0.081651]
[1728500200810,0.256322,61275.0,61274.0,0.081651]
[1728500201113,0.256322,61275.0,61269.0,0.3608]
[1728500201114,0.081658,61272.0,61271.0,0.081655]
[1728500201310,0.271658,61272.0,61271.0,0.081655]
[1728500201714,0.271658,61272.0,61261.0,0.0114]
[1728500201715,0.5508,61272.0,61261.0,0.0114]
[1728500201924,0.27167,61262.0,61261.0,0.08167]
[1728500202725,0.27167,61262.0,61257.0,0.3608]
[1728500202726,0.3608,61272.0,61257.0,0.3608]
[1728500202927,0.271663,61267.0,61264.0,0.081666]
[1728500203112,0.19,61265.0,61264.0,0.081666]
[1728500203314,0.19,61265.0,61257.0,0.3608]
[1728500203535,0.081669,61262.0,61261.0,0.08167]
[1728500203819,0.19,61262.0,61257.0,0.3608]
[1728500204022,0.081668,61263.0,61261.0,0.081671]
[1728500204610,0.001,61262.0,61261.0,0.081671]
[1728500204815,0.191,61262.0,61261.0,0.081671]
[1728500205015,0.191,61262.0,61261.0,0.1305479]
[1728500205318,0.271669,61262.0,61261.0,0.081671]
[1728500205713,0.081672,61260.0,61259.0,0.14678756]
[1728500206012,0.081672,61260.0,61257.0,0.3608]
[1728500206013,0.272669,61262.0,61261.0,0.081671]
[1728500206527,0.273669,61262.0,61261.0,0.081671]
[1728500207324,0.272669,61262.0,61261.0,0.081671]
[1728500207910,0.273669,61262.0,61261.0,0.081671]
[1728500208317,0.273669,61262.0,61261.0,0.14678556]
[1728500209323,0.273669,61262.0,61261.0,0.081671]
[1728500210625,0.273669,61262.0,61261.0,0.28422109]
[1728500211523,0.273669,61262.0,61261.0,0.20275958]
[1728500211720,0.273669,61262.0,61261.0,0.12108858]
[1728500211925,0.273669,61262.0,61261.0,0.20240359]
[1728500212123,0.081671,61261.0,61260.0,0.08131501]
[1728500212315,0.081671,61261.0,61260.0,0.20288335]
[1728500213026,0.081671,61261.0,61260.0,0.081672]
[1728500213224,0.081673,61259.0,61258.0,0.098004]
[1728500214426,0.082673,61259.0,61258.0,0.21951]
[1728500214830,0.083673,61259.0,61258.0,0.21951]
[1728500216226,0.082673,61259.0,61258.0,0.21951]
[1728500216423,0.083673,61259.0,61258.0,0.21951]
[1728500217034,0.002,61259.0,61258.0,0.21951]
[1728500217423,0.083673,61259.0,61258.0,0.21951]
[1728500220036,0.083673,61259.0,61258.0,0.098004]
[1728500222123,0.11522916,61259.0,61258.0,0.098004]
[1728500223335,0.083673,61259.0,61258.0,0.098004]
[1728500223547,0.083673,61259.0,61258.0,0.01633]
[1728500223731,0.081685,61250.0,61249.0,0.0038]
[1728500223934,0.081693,61244.0,61243.0,0.00244913]
[1728500224136,0.081696,61243.0,61242.0,0.081695]
[1728500224335,0.271696,61243.0,61242.0,0.081695]
[1728500224536,0.271696,61243.0,61229.0,0.213913]
[1728500224537,0.081715,61228.0,61227.0,0.04891459]
[1728500224750,0.081715,61228.0,61215.0,0.00806255]
[1728500224751,1.6216,61228.0,61215.0,0.00806255]
[1728500225056,0.3608,61221.0,61220.0,0.081725]
[1728500225259,0.3608,61221.0,61203.0,0.44499903]
[1728500225260,0.1634,61218.0,61197.0,0.00600617]
[1728500225454,0.1634,61218.0,61205.0,0.081745]
[1728500225455,0.19,61206.0,61205.0,0.081745]
[1728500225656,1.5,61206.0,61205.0,0.081745]
[1728500226364,0.3608,61207.0,61206.0,0.081744]
[1728500226657,0.5508,61207.0,61206.0,0.081744]
[1728500226861,0.3608,61207.0,61206.0,0.081744]
[1728500227754,0.3608,61218.0,61217.0,0.081729]
[1728500227954,0.3608,61218.0,61217.0,0.271729]
[1728500228159,0.3608,61223.0,61222.0,0.081723]
[1728500228359,0.19,61229.0,61226.0,0.01634]
[1728500228557,0.3608,61230.0,61226.0,0.08123727]
[1728500228748,0.3608,61230.0,61228.0,0.14661027]
[1728500228953,0.3608,61230.0,61229.0,0.14661027]
[1728500229149,0.3608,61230.0,61229.0,0.081713]
[1728500229866,0.3678,61230.0,61229.0,0.081713]
[1728500230871,0.081716,61227.0,61226.0,0.01634]
[1728500233767,0.087716,61227.0,61226.0,0.01634]
[1728500234369,0.088716,61227.0,61226.0,0.01634]
[1728500235059,0.0478219,61227.0,61226.0,0.01634]
[1728500237656,0.1578219,61227.0,61226.0,0.01634]
[1728500239158,1.2478219,61227.0,61226.0,0.01634]
[1728500239559,1.4378219,61227.0,61226.0,0.01634]
[1728500239761,0.1578219,61227.0,61226.0,0.01634]
[1728500239966,0.007,61227.0,61226.0,0.098057]
[1728500241769,0.007,61227.0,61226.0,0.288057]
[1728500242361,0.007,61227.0,61226.0,1.378057]
[1728500242572,0.19,61245.0,61230.0,0.081712]
[1728500242573,0.0076,61240.0,61230.0,0.081712]
[1728500242868,0.081681,61254.0,61250.0,0.081685]
[1728500242869,0.081684,61251.0,61250.0,0.081685]
[1728500243069,0.3608,61257.0,61247.0,0.01634]
[1728500243276,0.081682,61253.0,61252.0,0.081682]
[1728500243565,0.081682,61253.0,61247.0,0.01634]
[1728500243566,0.081688,61248.0,61247.0,0.01634]
[1728500243779,0.632488,61248.0,61247.0,0.01634]
[1728500243963,1.122288,61248.0,61247.0,0.01634]
[1728500244467,1.15384836,61248.0,61247.0,0.01634]
[1728500245567,1.2078664,61248.0,61247.0,0.01634]
[1728500245968,1.2218664,61248.0,61247.0,0.01634]
[1728500246274,1.18185179,61248.0,61247.0,0.01634]
[1728500246476,1.92186641,61248.0,61247.0,0.01634]
[1728500246676,1.92186642,61248.0,61247.0,0.01634]
[1728500247072,1.92186642,61248.0,61237.0,0.0038]
[1728500247073,0.081701,61238.0,61237.0,0.0038]
[1728500247264,0.081701,61238.0,61223.0,0.0038]
[1728500247265,1.0531638,61238.0,61223.0,0.0038]
[1728500247570,0.081715,61229.0,61228.0,0.081713]
[1728500247972,0.065375,61229.0,61228.0,0.081713]
[1728500248974,0.071375,61229.0,61228.0,0.082713]
[1728500249275,0.03757105,61229.0,61228.0,0.082713]
[1728500249674,0.04257105,61229.0,61228.0,0.082713]
[1728500249971,0.011,61229.0,61228.0,0.082713]
[1728500250983,0.092713,61229.0,61228.0,0.082713]
[1728500257175,0.212713,61229.0,61228.0,0.082713]
[1728500257784,0.092713,61229.0,61228.0,0.082713]
[1728500258382,0.011,61229.0,61228.0,0.082713]
[1728500261384,0.5546,61238.0,61237.0,0.081703]
[1728500261582,2.132501,61238.0,61237.0,0.081703]
[1728500261785,2.132501,61238.0,61237.0,0.144103]
[1728500262184,0.5508,61238.0,61237.0,0.144103]
[1728500262383,0.3608,61246.0,61241.0,0.081697]
[1728500262581,0.081689,61248.0,61242.0,0.081696]
[1728500262887,0.081689,61248.0,61241.0,0.442497]
[1728500262888,0.081689,61248.0,61247.0,0.081689]
[1728500263090,1.581689,61248.0,61247.0,0.081689]
[1728500263277,1.771689,61248.0,61247.0,0.081689]
[1728500263478,1.766349,61248.0,61247.0,0.081689]
[1728500263894,1.780349,61248.0,61247.0,0.081689]
[1728500264186,1.704,61248.0,61247.0,0.081689]
[1728500264382,0.204,61248.0,61247.0,0.081689]
[1728500264684,0.18766,61248.0,61247.0,0.081689]
[1728500265089,0.00966,61248.0,61247.0,0.3933557]
[1728500265387,0.00966,61248.0,61247.0,0.47577796]
[1728500265388,0.02366,61248.0,61247.0,0.47577796]
[1728500265689,0.02366,61248.0,61247.0,0.2043557]
[1728500265883,0.02366,61248.0,61247.0,1.4841557]
[1728500266088,1.5,61255.0,61254.0,0.08168]
[1728500266488,0.19,61259.0,61258.0,0.081675]
[1728500266682,0.081668,61263.0,61254.0,0.08168]
[1728500266683,0.19,61263.0,61262.0,0.081669]
[1728500266991,0.271668,61263.0,61262.0,0.081669]
[1728500267782,0.271668,61263.0,61254.0,0.08268]
[1728500267783,0.081679,61255.0,61254.0,0.06610036]
[1728500267990,0.081679,61255.0,61254.0,0.001]
[1728500268180,0.081679,61255.0,61254.0,0.01734]
[1728500268378,0.79976,61255.0,61247.0,0.001]
[1728500268590,0.79976,61255.0,61250.0,0.081684]
[1728500268591,0.081686,61251.0,61250.0,0.081684]
[1728500268785,0.081688,61248.0,61242.0,0.06510036]
[1728500268988,0.081697,61241.0,61240.0,0.081698]
[1728500269993,0.081697,61241.0,61240.0,0.082698]
[1728500270388,0.361697,61241.0,61240.0,0.082698]
[1728500270589,0.361697,61241.0,61240.0,0.001]
[1728500271679,0.361697,61241.0,61240.0,0.002]
[1728500271886,1.861697,61241.0,61240.0,0.002]
[1728500272592,2.461577,61241.0,61240.0,0.002]
[1728500273095,2.53316563,61241.0,61240.0,0.002]
[1728500274988,2.04328563,61241.0,61240.0,0.002]
[1728500277190,2.04328563,61241.0,61225.0,0.3608]
[1728500277191,3.05146863,61241.0,61228.0,0.081714]
[1728500277386,3.05146863,61241.0,61225.0,0.085518]
[1728500277387,0.081717,61226.0,61225.0,0.085518]
[1728500277588,0.081717,61226.0,61225.0,0.081718]
[1728500277798,0.09694831,61226.0,61225.0,0.081718]
[1728500278196,0.081719,61225.0,61213.0,0.0038]
[1728500278399,0.081719,61225.0,61212.0,0.3608]
[1728500278400,0.26366,61220.0,61216.0,0.059]
[1728500278894,0.26366,61220.0,61219.0,0.081727]
[1728500280091,0.442521,61224.0,61219.0,0.081727]
[1728500280298,0.345385,61220.0,61219.0,0.081727]
[1728500281012,0.345385,61220.0,61219.0,0.085727]
[1728500281415,0.345385,61220.0,61219.0,0.092727]
[1728500281619,0.3608,61224.0,61223.0,0.081721]
[1728500281915,0.34446,61224.0,61223.0,0.081721]
[1728500283309,0.3608,61230.0,61223.0,0.081721]
[1728500283505,0.3608,61230.0,61229.0,0.081713]
[1728500284218,0.3608,61236.0,61235.0,0.081705]
[1728500285712,0.3608,61236.0,61235.0,0.082705]
[1728500285912,0.3698,61236.0,61235.0,0.083705]
[1728500286521,0.451504,61236.0,61235.0,0.083705]
[1728500287811,0.3698,61236.0,61235.0,0.083705]
[1728500288317,0.3698,61236.0,61235.0,0.14880536]
[1728500288721,0.6498,61236.0,61235.0,0.14880536]
[1728500288922,0.731504,61236.0,61235.0,0.083705]
[1728500289426,0.731504,61236.0,61235.0,0.002]
[1728500290117,0.731504,61236.0,61235.0,0.083705]
[1728500290520,0.641504,61236.0,61235.0,0.083705]
[1728500291421,0.641504,61236.0,61235.0,0.002]
[1728500291720,0.641504,61236.0,61228.0,0.00224]
[1728500291721,1.75972,61236.0,61226.0,0.081421]
[1728500291923,0.08172,61224.0,61223.0,0.081717]
[1728500292722,0.08172,61224.0,61216.0,0.0571]
[1728500292723,0.065387,61221.0,61220.0,0.081725]
[1728500292922,0.255387,61221.0,61220.0,0.081725]
[1728500293721,0.065387,61221.0,61220.0,0.081725]
[1728500293921,0.255387,61221.0,61220.0,0.081725]
[1728500294634,0.255387,61221.0,61220.0,0.086725]
[1728500295525,0.255387,61221.0,61220.0,0.089725]
[1728500299420,0.19,61221.0,61220.0,0.089725]
[1728500299622,0.381724,61221.0,61220.0,0.008]
[1728500299924,0.41330172,61221.0,61220.0,0.008]
[1728500300124,2.03600172,61221.0,61220.0,0.008]
[1728500300626,2.05945467,61221.0,61220.0,0.008]
[1728500300832,2.95949467,61221.0,61220.0,0.008]
[1728500301133,2.95949467,61221.0,61216.0,0.01635]
[1728500301134,0.081729,61217.0,61216.0,0.01635]
[1728500301321,0.77411008,61217.0,61216.0,0.01635]
[1728500301526,1.86419008,61217.0,61216.0,0.01635]
[1728500301834,1.26419014,61217.0,61216.0,0.01635]
[1728500302130,1.26419014,61217.0,61206.0,0.00245003]
[1728500302131,0.081743,61207.0,61206.0,0.00245003]
[1728500302331,0.993343,61207.0,61206.0,0.00245003]
[1728500303034,1.103343,61207.0,61206.0,0.00245003]
[1728500304237,0.081745,61205.0,61204.0,0.01635]
[1728500304421,0.191745,61205.0,61204.0,0.01635]
[1728500304621,0.191745,61205.0,61192.0,0.0023]
[1728500304622,0.081755,61198.0,61192.0,0.0023]
[1728500304931,0.632561,61193.0,61192.0,0.084063]
[1728500305525,0.632561,61193.0,61192.0,0.0023]
[1728500306028,0.632561,61193.0,61192.0,0.0113]
[1728500306219,0.632561,61193.0,61187.0,0.00245169]
[1728500306424,0.616218,61188.0,61187.0,0.00245169]
[1728500306625,0.5589356,61188.0,61187.0,0.00245169]
[1728500306825,0.5589356,61188.0,61187.0,0.08422069]
[1728500307031,0.4608176,61188.0,61187.0,0.08422069]
[1728500307250,0.19,61191.0,61187.0,0.00245169]
[1728500307428,0.19,61191.0,61190.0,0.081765]
[1728500308530,0.19,61191.0,61190.0,0.093765]
[1728500308728,0.271764,61191.0,61190.0,0.012]
[1728500308925,0.082764,61191.0,61190.0,0.012]
[1728500309131,0.272764,61191.0,61190.0,0.012]
[1728500309940,0.272764,61191.0,61190.0,0.093765]
[1728500311331,0.265964,61191.0,61190.0,0.093765]
[1728500312239,0.265964,61191.0,61190.0,0.012]
[1728500312531,0.265964,61191.0,61190.0,0.093765]
[1728500313435,0.001,61191.0,61190.0,0.110115]
[1728500313932,0.3608,61193.0,61192.0,0.081763]
[1728500314133,0.442561,61193.0,61192.0,0.081763]
[1728500314432,0.5508,61193.0,61192.0,0.081763]
[1728500314759,0.08173,61217.0,61203.0,0.081748]
[1728500314926,0.081739,61211.0,61210.0,0.081736]
[1728500315238,1.771739,61211.0,61210.0,0.081736]
[1728500316236,1.771739,61211.0,61210.0,0.084736]
[1728500316431,1.771739,61211.0,61210.0,0.003]
[1728500317838,0.081741,61208.0,61207.0,0.3608]
[1728500319042,0.081743,61207.0,61206.0,0.01635]
[1728500319344,0.271743,61207.0,61206.0,0.01635]
[1728500320144,1.832703,61207.0,61206.0,0.01635]
[1728500321039,1.75096,61207.0,61195.0,0.3608]
[1728500321243,0.271757,61196.0,61195.0,0.3608]
[1728500321544,0.081765,61190.0,61189.0,0.3608]
[1728500321739,0.065415,61190.0,61189.0,0.3608]
[1728500322134,0.081764,61193.0,61192.0,0.081761]
[1728500322742,1.581764,61193.0,61192.0,0.081761]
[1728500323042,0.081758,61196.0,61195.0,0.081757]
[1728500323342,0.19,61206.0,61195.0,0.081757]
[1728500323644,0.081754,61199.0,61198.0,0.081751]
[1728500324144,0.081744,61207.0,61206.0,0.081742]
[1728500324440,0.081744,61207.0,61206.0,0.271742]
[1728500325136,0.04083884,61207.0,61206.0,0.271742]
[1728500325340,0.04183884,61207.0,61206.0,0.271742]
[1728500325536,0.04783884,61207.0,61206.0,0.326242]
[1728500325948,0.08417577,61220.0,61206.0,1.98038327]
[1728500325949,0.00245077,61220.0,61206.0,1.98038327]
[1728500326242,0.00245077,61220.0,61219.0,0.081727]
[1728500326441,1.50245077,61220.0,61219.0,0.081727]
[1728500326634,0.00245077,61220.0,61219.0,0.442527]
[1728500327337,0.081724,61221.0,61220.0,0.081725]
[1728500327645,0.08172,61225.0,61224.0,0.081719]
[1728500328946,0.08172,61225.0,61224.0,0.442519]
[1728500328947,0.09572,61225.0,61224.0,0.442519]
[1728500329650,0.014,61225.0,61224.0,0.442519]
[1728500330339,0.019,61225.0,61224.0,0.443519]
[1728500330639,0.081701,61239.0,61224.0,1.2418]
[1728500330836,0.081701,61239.0,61238.0,0.0817]
[1728500332242,0.081701,61238.0,61237.0,0.3608]
[1728500332548,0.081701,61238.0,61236.0,0.01635]
[1728500332549,0.081703,61237.0,61236.0,0.01635]
[1728500333239,0.11327001,61237.0,61236.0,0.01635]
[1728500333439,0.20344942,61237.0,61236.0,0.01635]
[1728500333741,0.36449545,61237.0,61236.0,0.01635]
[1728500334036,0.36449545,61237.0,61236.0,0.098054]
[1728500334241,0.20344942,61237.0,61236.0,0.099054]
[1728500334445,0.20344726,61237.0,61236.0,0.099054]
[1728500335541,0.21244726,61237.0,61236.0,0.100054]
[1728500336644,0.27105875,61237.0,61234.0,0.28096302]
[1728500336846,0.26206075,61236.0,61235.0,0.081705]
[1728500337041,0.18035575,61236.0,61235.0,0.081705]
[1728500337644,0.12174426,61236.0,61235.0,0.081705]
[1728500337837,0.18035575,61236.0,61235.0,0.081705]
[1728500338243,0.26205975,61236.0,61235.0,0.082705]
[1728500338639,0.37715975,61236.0,61235.0,0.083705]
[1728500340245,0.296804,61236.0,61235.0,0.002]
[1728500340552,0.08172,61224.0,61223.0,0.0038]
[1728500340742,0.08172,61224.0,61222.0,0.01634]
[1728500340743,0.081721,61223.0,61222.0,0.01634]
[1728500340950,0.081729,61217.0,61216.0,0.3608]
[1728500341260,0.361729,61217.0,61216.0,0.3608]
[1728500341748,0.081729,61217.0,61216.0,0.442531]
[1728500341952,1.5,61219.0,61218.0,0.081728]
[1728500342252,0.140123,61222.0,61221.0,0.081724]
[1728500342449,0.0584,61222.0,61221.0,0.081724]
[1728500342848,0.442519,61225.0,61224.0,0.08172]
[1728500343045,1.942519,61225.0,61224.0,0.08172]
[1728500344046,1.942519,61225.0,61224.0,0.08372]
[1728500344546,1.581719,61225.0,61224.0,0.08372]
[1728500344746,1.582719,61225.0,61224.0,0.08372]
[1728500345147,0.081725,61220.0,61219.0,0.01134]
[1728500345350,0.722525,61220.0,61219.0,0.01134]
[1728500346055,1.932565,61220.0,61219.0,0.01134]
[1728500346245,0.081736,61212.0,61203.0,0.3608]
[1728500346442,0.081736,61212.0,61209.0,0.08174]
[1728500346652,0.198536,61212.0,61209.0,0.08174]
[1728500347154,0.198536,61212.0,61206.0,0.081743]
[1728500347457,0.198536,61212.0,61206.0,0.081744]
[1728500347958,0.198536,61212.0,61198.0,0.3608]
[1728500347959,0.081737,61211.0,61198.0,0.3608]
[1728500348252,0.081737,61211.0,61204.0,0.01635]
[1728500348253,0.081745,61205.0,61204.0,0.01635]
[1728500348649,0.571905,61205.0,61204.0,0.01635]
[1728500349050,0.081745,61205.0,61204.0,0.01635]
[1728500349752,0.002,61212.0,61211.0,0.081737]
[1728500350054,0.001,61212.0,61211.0,0.081737]
[1728500350643,0.001,61212.0,61207.0,0.3608]
[1728500350644,0.001,61211.0,61207.0,0.3608]
[1728500350861,0.001,61211.0,61210.0,0.081739]
[1728500351248,0.082737,61211.0,61210.0,0.081739]
[1728500351449,0.3608,61218.0,61207.0,0.3608]
[1728500351755,0.3608,61218.0,61208.0,0.081739]
[1728500351756,0.08174,61209.0,61208.0,0.081739]
[1728500352456,0.442528,61218.0,61217.0,0.081729]
[1728500352957,0.3608,61223.0,61214.0,0.28]
[1728500353156,0.081727,61219.0,61218.0,0.081727]
[1728500353357,0.081725,61222.0,61221.0,0.081723]
[1728500353557,0.081719,61225.0,61219.0,0.081726]
[1728500353749,0.081726,61220.0,61219.0,0.081726]
[1728500354459,0.081727,61219.0,61218.0,0.37715]
[1728500354660,0.081727,61219.0,61218.0,0.458878]
[1728500355057,0.081727,61219.0,61218.0,0.01635]
[1728500355562,0.081727,61219.0,61218.0,0.01735]
[1728500356861,0.081727,61219.0,61218.0,0.01635]
[1728500357064,0.086727,61219.0,61218.0,0.01635]
[1728500357356,0.086727,61219.0,61218.0,0.02035]
[1728500357357,0.547527,61219.0,61218.0,0.02035]
[1728500357557,0.547527,61219.0,61214.0,0.04880348]
[1728500357558,1.65677742,61219.0,61214.0,0.04880348]
[1728500357762,0.28,61214.0,61211.0,0.04880348]
[1728500357948,0.28,61214.0,61205.0,0.3608]
[1728500357949,0.081737,61211.0,61210.0,0.04880348]
[1728500358151,0.081739,61210.0,61208.0,0.04880348]
[1728500358357,0.442536,61212.0,61208.0,0.04880348]
[1728500358358,0.08174,61209.0,61208.0,0.04880348]
[1728500358551,0.081744,61206.0,61205.0,0.442545]
[1728500359351,0.002,61210.0,61205.0,0.5076047]
[1728500359557,0.081743,61207.0,61206.0,0.1468027]
[1728500361356,0.083743,61207.0,61206.0,0.1468027]
[1728500361760,0.083743,61207.0,61206.0,0.1498027]
[1728500361967,0.081743,61207.0,61206.0,0.1498027]
[1728500363662,0.081743,61207.0,61206.0,0.084743]
[1728500364759,0.081743,61207.0,61206.0,0.003]
[1728500364965,0.10087377,61207.0,61206.0,0.003]
[1728500365372,0.10087377,61207.0,61206.0,0.084744]
[1728500365577,0.10087377,61207.0,61206.0,0.003]
[1728500365963,0.10087377,61207.0,61206.0,0.084744]
[1728500366864,0.10087377,61207.0,61206.0,0.003]
[1728500367065,0.36452377,61207.0,61206.0,0.003]
[1728500368360,0.36452377,61207.0,61204.0,0.00245071]
[1728500368361,0.081745,61205.0,61204.0,0.00245071]
[1728500368566,0.081745,61205.0,61204.0,0.08419771]
[1728500368876,0.081745,61205.0,61204.0,0.081747]
[1728500370474,0.04083903,61205.0,61204.0,0.28628292]
[1728500370871,0.004,61207.0,61204.0,0.75571116]
[1728500371072,0.3608,61212.0,61207.0,0.01235]
[1728500371269,0.3608,61212.0,61211.0,0.081737]
[1728500371270,0.081736,61212.0,61211.0,0.081737]
[1728500372171,0.083736,61212.0,61211.0,0.081737]
[1728500373772,0.082736,61212.0,61211.0,0.139237]
[1728500373969,0.001,61212.0,61211.0,1.63206157]
[1728500374177,0.08173,61217.0,61216.0,0.081728]
[1728500374370,0.081726,61220.0,61219.0,0.081724]
[1728500374568,0.0577,61227.0,61224.0,0.08172]
[1728500374569,0.07181767,61227.0,61224.0,0.08172]
[1728500374779,0.07181767,61227.0,61226.0,0.081717]
[1728500374969,0.081713,61230.0,61229.0,0.081713]
[1728500375173,0.076813,61230.0,61229.0,0.56521757]
[1728500375970,0.076813,61230.0,61229.0,0.48350457]
[1728500376279,0.076813,61230.0,61229.0,0.3608]
[1728500376575,0.076813,61230.0,61229.0,0.42600098]
[1728500377278,0.076813,61230.0,61229.0,0.3608]
[1728500377671,0.084813,61230.0,61229.0,0.3618]
[1728500378269,0.088813,61230.0,61229.0,0.3618]
[1728500378678,0.088813,61230.0,61229.0,0.001]
[1728500382185,0.081713,61229.0,61228.0,0.01634]
[1728500382390,0.971673,61229.0,61228.0,0.01634]
[1728500382681,0.971673,61229.0,61223.0,0.04888728]
[1728500382682,0.08172,61224.0,61220.0,0.04888728]
[1728500382887,0.3608,61223.0,61220.0,0.04888728]
[1728500383086,0.081724,61221.0,61220.0,0.04888728]
[1728500384490,0.081724,61221.0,61220.0,0.13561228]
[1728500384790,0.06,61228.0,61220.0,0.05587097]
[1728500384791,0.081724,61222.0,61220.0,0.05587097]
[1728500385086,0.081724,61222.0,61221.0,0.081724]
[1728500387192,0.090724,61222.0,61221.0,0.082724]
[1728500388592,0.090724,61222.0,61221.0,0.362724]
[1728500388593,0.009,61222.0,61221.0,0.362724]
[1728500388792,0.081712,61230.0,61229.0,0.081711]
[1728500388992,0.081712,61230.0,61229.0,0.442511]
[1728500389183,0.081709,61232.0,61231.0,0.081707]
[1728500390086,0.46033005,61236.0,61231.0,0.081707]
[1728500390286,0.006,61232.0,61231.0,0.082707]
[1728500391099,0.02,61232.0,61231.0,0.083707]
[1728500391391,0.014,61232.0,61231.0,0.083707]
[1728500391783,0.46388,61236.0,61232.0,0.081709]
[1728500392090,0.408183,61252.0,61244.0,0.00354]
[1728500392091,0.01876849,61246.0,61244.0,0.00354]
[1728500392284,0.11325896,61245.0,61244.0,0.085233]
[1728500392484,0.081692,61245.0,61244.0,0.00354]
[1728500392892,0.361692,61245.0,61244.0,0.00354]
[1728500393695,0.951532,61245.0,61244.0,0.00354]
[1728500394193,0.081708,61233.0,61232.0,0.001]
[1728500394397,0.271708,61233.0,61232.0,0.01734]
[1728500394691,0.271708,61233.0,61232.0,0.01634]
[1728500395788,0.277708,61233.0,61232.0,0.01734]
[1728500396389,0.287708,61233.0,61232.0,0.01834]
[1728500400890,1.787708,61233.0,61232.0,0.01834]
[1728500401100,1.787708,61233.0,61217.0,0.04888343]
[1728500401101,2.33444603,61233.0,61217.0,0.04888343]
[1728500401301,0.19,61219.0,61213.0,0.04888343]
[1728500401510,0.065395,61213.0,61212.0,0.081735]
[1728500401807,0.3608,61221.0,61213.0,0.081734]
[1728500401808,0.081735,61214.0,61213.0,0.081734]
[1728500402096,0.0572,61224.0,61213.0,0.081734]
[1728500402097,0.3608,61226.0,61213.0,0.19]
[1728500402304,0.081725,61221.0,61217.0,0.5508]
[1728500402500,0.081725,61221.0,61220.0,0.081725]
[1728500403201,0.081728,61218.0,61217.0,0.3618]
[1728500403397,0.081728,61218.0,61216.0,0.01635]
[1728500403398,0.081729,61217.0,61216.0,0.01635]
[1728500404794,0.082729,61217.0,61216.0,0.02535]
[1728500404992,0.082729,61217.0,61216.0,0.107081]
[1728500405293,0.001,61217.0,61216.0,0.297081]
[1728500405494,0.001,61217.0,61216.0,0.107081]
[1728500405900,0.082729,61217.0,61216.0,0.107081]
[1728500406401,0.001,61217.0,61216.0,0.107081]
[1728500406703,0.001,61217.0,61216.0,0.112081]
[1728500407201,0.082729,61217.0,61216.0,0.103081]
[1728500407500,0.081729,61217.0,61216.0,0.106081]
[1728500407890,0.081729,61217.0,61216.0,0.103081]
[1728500408091,0.082729,61217.0,61216.0,0.108081]
[1728500408590,0.081729,61217.0,61216.0,0.02235]
[1728500409297,0.081729,61217.0,61216.0,0.104081]
[1728500409705,0.081729,61217.0,61216.0,0.103081]
[1728500410296,0.081729,61217.0,61216.0,0.105081]
[1728500410499,0.081729,61217.0,61216.0,0.02435]
[1728500410701,0.081729,61217.0,61216.0,0.101081]
[1728500410901,0.081729,61217.0,61216.0,0.105081]
[1728500411109,0.562529,61217.0,61216.0,0.02335]
[1728500411404,0.081745,61205.0,61204.0,0.081746]
[1728500411611,0.271745,61205.0,61204.0,0.081746]
[1728500412209,0.255395,61205.0,61204.0,0.081746]
[1728500412506,0.081754,61201.0,61200.0,0.081751]
[1728500412709,0.271754,61201.0,61200.0,0.081751]
[1728500412898,0.255404,61201.0,61200.0,0.081751]
[1728500414211,0.257404,61201.0,61200.0,0.105751]
[1728500415505,0.002,61201.0,61200.0,0.105751]
[1728500415708,0.081732,61215.0,61214.0,0.081732]
[1728500415901,1.5,61216.0,61215.0,0.081732]
[1728500416204,1.581731,61216.0,61215.0,0.081732]
[1728500417812,1.581731,61216.0,61215.0,0.082732]
[1728500418907,1.581731,61216.0,61215.0,0.085732]
[1728500419105,1.581731,61216.0,61215.0,0.004]
[1728500419510,1.701731,61216.0,61215.0,0.004]
[1728500423210,0.442527,61219.0,61215.0,0.085732]
[1728500423413,0.0038,61225.0,61224.0,0.09807]